[Event "*** Titled Tuesday 3|2 Blitz"]
[Site "Chess.com"]
[Date "2015.12.01"]
[Round "6"]
[White "Cararay"]
[Black "Anton_Demchenko"]
[Result "0-1"]
[WhiteElo "2221"]
[BlackElo "2633"]
[TimeControl "180+2"]
[EndTime "18:20:58 PST"]
[Termination "Anton_Demchenko won by resignation"]

1. c4 {[%clk 0:03:01.9]} 1... Nf6 {[%clk 0:02:59.8]} 2. Nc3 {[%clk 0:03:02.4]}
2... g6 {[%clk 0:03:01]} 3. e4 {[%clk 0:03:02.6]} 3... d6 {[%clk 0:03:02.1]} 4.
d4 {[%clk 0:03:03.2]} 4... Bg7 {[%clk 0:03:03.4]} 5. Nge2 {[%clk 0:03:03.8]}
5... O-O {[%clk 0:03:04.9]} 6. f3 {[%clk 0:03:04.3]} 6... Nc6 {[%clk 0:03:05.2]}
7. Be3 {[%clk 0:03:04.5]} 7... a6 {[%clk 0:03:06.4]} 8. Qd2 {[%clk 0:03:05]}
8... Na5 {[%clk 0:03:07.6]} 9. b3 {[%clk 0:03:02.4]} 9... b5 {[%clk 0:03:07.5]}
10. cxb5 {[%clk 0:02:56.4]} 10... axb5 {[%clk 0:03:09.4]} 11. Nc1 {[%clk
0:02:56.7]} 11... b4 {[%clk 0:03:00.3]} 12. Na4 {[%clk 0:02:56]} 12... c5 {[%clk
0:03:01.2]} 13. Rb1 {[%clk 0:02:50.2]} 13... cxd4 {[%clk 0:02:36.8]} 14. Bxd4
{[%clk 0:02:45.4]} 14... Nc6 {[%clk 0:02:37.5]} 15. Be3 {[%clk 0:02:43.9]} 15...
Nd7 {[%clk 0:02:33.2]} 16. Kf2 {[%clk 0:02:33]} 16... Qa5 {[%clk 0:02:28.9]} 17.
Be2 {[%clk 0:02:20.7]} 17... Nc5 {[%clk 0:02:24.3]} 18. Nxc5 {[%clk 0:02:18.3]}
18... dxc5 {[%clk 0:02:26.2]} 19. Rd1 {[%clk 0:02:17.8]} 19... Rd8 {[%clk
0:02:21.6]} 20. Qe1 {[%clk 0:02:14.8]} 20... Nd4 {[%clk 0:02:20.1]} 21. Bd3
{[%clk 0:01:53.3]} 21... Be6 {[%clk 0:02:14.6]} 22. Kg1 {[%clk 0:01:51.4]} 22...
h5 {[%clk 0:02:10.5]} 23. Rd2 {[%clk 0:01:47.3]} 23... Rd7 {[%clk 0:02:05.9]}
24. Kh1 {[%clk 0:01:45.9]} 24... Rad8 {[%clk 0:02:06.1]} 25. Rf2 {[%clk
0:01:46.1]} 25... Nc6 {[%clk 0:01:53.7]} 26. Be2 {[%clk 0:01:38.9]} 26... Bc3
{[%clk 0:01:52.7]} 27. Qf1 {[%clk 0:01:39.1]} 27... Nd4 {[%clk 0:01:53.9]} 28.
Bc4 {[%clk 0:01:30.7]} 28... Bxc4 {[%clk 0:01:53]} 29. bxc4 {[%clk 0:01:31.2]}
29... Nc2 {[%clk 0:01:43.7]} 30. Nb3 {[%clk 0:01:31]} 30... Nxe3 {[%clk
0:01:41.9]} 31. Nxa5 {[%clk 0:01:31.4]} 31... Nxf1 {[%clk 0:01:43]} 32. Rfxf1
{[%clk 0:01:32.4]} 32... Ra8 {[%clk 0:01:36.2]} 33. Nb3 {[%clk 0:01:32.6]} 33...
Rxa2 {[%clk 0:01:31.2]} 34. Nxc5 {[%clk 0:01:32.5]} 34... Rdd2 {[%clk
0:01:31.9]} 35. Rg1 {[%clk 0:01:27.2]} 35... Rd4 {[%clk 0:01:17.5]} 36. Nb3
{[%clk 0:01:16]} 36... Rxc4 {[%clk 0:01:18.5]} 37. Rgc1 {[%clk 0:01:16.5]} 37...
Rc8 {[%clk 0:01:16.6]} 38. Nd4 {[%clk 0:01:15.4]} 38... Rc5 {[%clk 0:00:52.7]}
39. Nb3 {[%clk 0:01:02.2]} 39... Rg5 {[%clk 0:00:49.7]} 40. g3 {[%clk
0:01:03.1]} 40... h4 {[%clk 0:00:46.8]} 41. f4 {[%clk 0:01:00.6]} 41... Rh5
{[%clk 0:00:45.5]} 42. g4 {[%clk 0:01:00.5]} 42... Rb5 {[%clk 0:00:44.9]} 43.
Rd1 {[%clk 0:00:56.5]} 43... g5 {[%clk 0:00:36]} 44. f5 {[%clk 0:00:39.2]} 44...
Be5 {[%clk 0:00:33.7]} 45. Nd4 {[%clk 0:00:39.8]} 45... Rb7 {[%clk 0:00:24.6]}
46. Nf3 {[%clk 0:00:40.1]} 46... Bf4 {[%clk 0:00:25.5]} 47. Rb3 {[%clk
0:00:40.2]} 47... Ra3 {[%clk 0:00:21.4]} 48. Rdb1 {[%clk 0:00:38.8]} 48... Rxb3
{[%clk 0:00:22.1]} 49. Rxb3 {[%clk 0:00:39.2]} 49... Kg7 {[%clk 0:00:19]} 50. h3
{[%clk 0:00:39.5]} 50... Kf6 {[%clk 0:00:17.5]} 51. Kg2 {[%clk 0:00:40.7]} 51...
Bd6 {[%clk 0:00:15.1]} 52. Kf1 {[%clk 0:00:40.8]} 52... Rb8 {[%clk 0:00:14.9]}
53. Ke2 {[%clk 0:00:41.7]} 53... e6 {[%clk 0:00:16.3]} 54. Kd3 {[%clk 0:00:42]}
54... exf5 {[%clk 0:00:17.7]} 55. exf5 {[%clk 0:00:42.9]} 55... Rd8 {[%clk
0:00:18.6]} 56. Kc4 {[%clk 0:00:43.7]} 56... Rc8+ {[%clk 0:00:20.1]} 57. Kb5
{[%clk 0:00:44.1]} 57... Rc1 {[%clk 0:00:20.3]} 58. Rd3 {[%clk 0:00:43.9]} 58...
Be7 {[%clk 0:00:21]} 59. Ka4 {[%clk 0:00:43.2]} 59... Ra1+ {[%clk 0:00:18.8]}
60. Kb5 {[%clk 0:00:42.8]} 60... Rh1 {[%clk 0:00:10.9]} 61. Nd2 {[%clk
0:00:42.6]} 61... Re1 {[%clk 0:00:10.6]} 62. Kc4 {[%clk 0:00:40.7]} 62... Rc1+
{[%clk 0:00:10.9]} 63. Kb3 {[%clk 0:00:40.2]} 63... Re1 {[%clk 0:00:11.5]} 64.
Kc4 {[%clk 0:00:40.7]} 64... Kg7 {[%clk 0:00:09.9]} 65. Kd5 {[%clk 0:00:40.2]}
65... Rd1 {[%clk 0:00:07.4]} 66. Kc4 {[%clk 0:00:40.4]} 66... Kf8 {[%clk
0:00:08]} 67. Ne4 {[%clk 0:00:40.4]} 67... Rxd3 {[%clk 0:00:08.1]} 68. Kxd3
{[%clk 0:00:40.8]} 68... f6 {[%clk 0:00:09.4]} 69. Kc4 {[%clk 0:00:41.3]} 69...
Ke8 {[%clk 0:00:10.8]} 70. Nf2 {[%clk 0:00:42]} 70... Kd7 {[%clk 0:00:11.4]} 71.
Nd3 {[%clk 0:00:42.8]} 71... Kc6 {[%clk 0:00:12.9]} 72. Nf2 {[%clk 0:00:43.4]}
72... Kd6 {[%clk 0:00:12.3]} 73. Nd3 {[%clk 0:00:43.3]} 73... b3 {[%clk
0:00:12.8]} 74. Kxb3 {[%clk 0:00:43.2]} 74... Kd5 {[%clk 0:00:14]} 75. Kc3
{[%clk 0:00:41.6]} 75... Ke4 {[%clk 0:00:15.2]} 76. Kd2 {[%clk 0:00:42]} 76...
Kf3 {[%clk 0:00:15.5]} 77. Ke1 {[%clk 0:00:42.3]} 77... Kg3 {[%clk 0:00:11.1]}
78. Ke2 {[%clk 0:00:42.5]} 78... Kxh3 {[%clk 0:00:11.3]} 79. Kf3 {[%clk
0:00:42.8]} 79... Kh2 {[%clk 0:00:12.8]} 80. Nf2 {[%clk 0:00:42.4]} 80... Kg1
{[%clk 0:00:08]} 81. Nh3+ {[%clk 0:00:41.5]} 81... Kf1 {[%clk 0:00:09.4]} 82.
Nf2 {[%clk 0:00:41.6]} 82... Bd8 {[%clk 0:00:10.7]} 83. Ne4 {[%clk 0:00:41.8]}
83... Ke1 {[%clk 0:00:08.6]} 84. Kg2 {[%clk 0:00:42]} 84... Ke2 {[%clk
0:00:09.1]} 85. Kh3 {[%clk 0:00:42.7]} 85... Ke3 {[%clk 0:00:09.6]} 86. Nd6
{[%clk 0:00:43.5]} 86... Kf4 {[%clk 0:00:09.8]} 87. Nc4 {[%clk 0:00:43.7]} 87...
Bc7 {[%clk 0:00:09.5]} 88. Nd2 {[%clk 0:00:44.2]} 88... Be5 {[%clk 0:00:10.1]}
89. Nc4 {[%clk 0:00:45]} 89... Bd4 {[%clk 0:00:10.7]} 90. Nd6 {[%clk 0:00:45.4]}
90... Ke5 {[%clk 0:00:10.8]} 91. Nc4+ {[%clk 0:00:45.9]} 91... Kd5 {[%clk
0:00:11.4]} 92. Nd2 {[%clk 0:00:46.5]} 92... Be3 {[%clk 0:00:11.1]} 93. Nf3
{[%clk 0:00:46.3]} 93... Ke4 {[%clk 0:00:09.5]} 94. Ne1 {[%clk 0:00:46.6]} 94...
Bd2 {[%clk 0:00:09.3]} 95. Nc2 {[%clk 0:00:47.3]} 95... Kd3 {[%clk 0:00:10.3]}
96. Na3 {[%clk 0:00:45.8]} 96... Bf4 {[%clk 0:00:10]} 97. Nb5 {[%clk 0:00:46.3]}
97... Kc4 {[%clk 0:00:11.1]} 98. Na7 {[%clk 0:00:47]} 98... Kc5 {[%clk
0:00:12.2]} 99. Nc8 {[%clk 0:00:47.7]} 99... Bd6 {[%clk 0:00:11.9]} 100. Kg2
{[%clk 0:00:20.7]} 100... Bf8 {[%clk 0:00:07.3]} 101. Kf3 {[%clk 0:00:19.1]}
101... Kc6 {[%clk 0:00:04.2]} 102. Ke4 {[%clk 0:00:18.5]} 102... Bc5 {[%clk
0:00:04.8]} 103. Kf3 {[%clk 0:00:18.4]} 103... Kc7 {[%clk 0:00:06]} 0-1

[Event "*** Titled Tuesday 3|2 Blitz"]
[Site "Chess.com"]
[Date "2015.12.01"]
[Round "7"]
[White "ChadaevNikolay"]
[Black "StellarChessPro"]
[Result "1-0"]
[WhiteElo "2535"]
[BlackElo "2257"]
[TimeControl "180+2"]
[EndTime "18:23:41 PST"]
[Termination "ChadaevNikolay won by resignation"]

1. e4 {[%clk 0:03:01.9]} 1... c6 {[%clk 0:03:00.9]} 2. Nf3 {[%clk 0:03:00.3]}
2... d5 {[%clk 0:03:02.8]} 3. Nc3 {[%clk 0:03:01.2]} 3... dxe4 {[%clk
0:03:03.5]} 4. Nxe4 {[%clk 0:03:01.2]} 4... Nf6 {[%clk 0:03:05.4]} 5. Qe2 {[%clk
0:03:01.3]} 5... Nxe4 {[%clk 0:03:02.2]} 6. Qxe4 {[%clk 0:03:02.1]} 6... Nd7
{[%clk 0:03:04.1]} 7. Bc4 {[%clk 0:03:01]} 7... Nf6 {[%clk 0:03:04.8]} 8. Ne5
{[%clk 0:03:01.7]} 8... e6 {[%clk 0:02:53.5]} 9. Qe2 {[%clk 0:03:02]} 9... Qc7
{[%clk 0:02:53.8]} 10. d4 {[%clk 0:03:02.1]} 10... Bd6 {[%clk 0:02:55.1]} 11.
O-O {[%clk 0:03:01.6]} 11... O-O {[%clk 0:02:52.5]} 12. Re1 {[%clk 0:02:55.7]}
12... b5 {[%clk 0:02:48.7]} 13. Bd3 {[%clk 0:02:55.7]} 13... a6 {[%clk
0:02:46.2]} 14. Bg5 {[%clk 0:02:56.3]} 14... c5 {[%clk 0:02:36.1]} 15. Bxf6
{[%clk 0:02:49.8]} 15... gxf6 {[%clk 0:02:22.4]} 16. Bxh7+ {[%clk 0:02:50.2]}
16... Kxh7 {[%clk 0:02:22.9]} 17. Qh5+ {[%clk 0:02:50.5]} 17... Kg7 {[%clk
0:02:23.8]} 18. Qg4+ {[%clk 0:02:52]} 1-0

[Event "*** Titled Tuesday 3|2 Blitz"]
[Site "Chess.com"]
[Date "2015.12.01"]
[Round "7"]
[White "oskariot"]
[Black "Viaje"]
[Result "1-0"]
[WhiteElo "2235"]
[BlackElo "2180"]
[TimeControl "180+2"]
[EndTime "18:24:31 PST"]
[Termination "oskariot won by resignation"]

1. e4 {[%clk 0:03:01.9]} 1... c5 {[%clk 0:03:00.4]} 2. Nf3 {[%clk 0:03:02.8]}
2... d6 {[%clk 0:03:02]} 3. d4 {[%clk 0:03:04.2]} 3... cxd4 {[%clk 0:03:03.9]}
4. Nxd4 {[%clk 0:03:06.1]} 4... Nf6 {[%clk 0:03:04.9]} 5. Nc3 {[%clk 0:03:07.7]}
5... a6 {[%clk 0:03:06.2]} 6. f4 {[%clk 0:03:09.3]} 6... e5 {[%clk 0:03:06.9]}
7. Nf3 {[%clk 0:03:10.9]} 7... Nbd7 {[%clk 0:03:06.8]} 8. a4 {[%clk 0:03:12.5]}
8... Be7 {[%clk 0:03:07.2]} 9. Bd3 {[%clk 0:03:14.2]} 9... O-O {[%clk
0:03:08.1]} 10. O-O {[%clk 0:03:15.8]} 10... exf4 {[%clk 0:03:08.8]} 11. Bxf4
{[%clk 0:03:16]} 11... Qb6+ {[%clk 0:03:09]} 12. Kh1 {[%clk 0:03:16.9]} 12...
Qxb2 {[%clk 0:03:10.6]} 13. Qe1 {[%clk 0:03:16.7]} 13... Nc5 {[%clk 0:03:01.9]}
14. Rb1 {[%clk 0:03:16.7]} 14... Qa3 {[%clk 0:03:01.2]} 15. Bc4 {[%clk
0:03:17.8]} 15... Be6 {[%clk 0:02:50.5]} 16. Bc1 {[%clk 0:02:59.8]} 16... Qxc3
{[%clk 0:02:18.5]} 17. Qxc3 {[%clk 0:02:58.3]} 17... Nfxe4 {[%clk 0:02:19.4]}
18. Qe3 {[%clk 0:02:33.4]} 18... Bxc4 {[%clk 0:02:18.6]} 19. Re1 {[%clk
0:02:34.7]} 19... f5 {[%clk 0:02:12.5]} 20. Bb2 {[%clk 0:02:30.8]} 20... Rae8
{[%clk 0:01:58.1]} 21. Qd4 {[%clk 0:02:28.1]} 1-0

[Event "*** Titled Tuesday 3|2 Blitz"]
[Site "Chess.com"]
[Date "2015.12.01"]
[Round "7"]
[White "Konavets"]
[Black "cheese111"]
[Result "1-0"]
[WhiteElo "2496"]
[BlackElo "2210"]
[TimeControl "180+2"]
[EndTime "18:27:00 PST"]
[Termination "Konavets won by checkmate"]

1. e4 {[%clk 0:03:01.9]} 1... d5 {[%clk 0:03:00.8]} 2. exd5 {[%clk 0:03:02.2]}
2... Qxd5 {[%clk 0:03:02.7]} 3. Nc3 {[%clk 0:03:03.5]} 3... Qd6 {[%clk
0:03:03.5]} 4. d4 {[%clk 0:03:04]} 4... Nf6 {[%clk 0:03:04.3]} 5. Nf3 {[%clk
0:03:05.4]} 5... c6 {[%clk 0:03:05.4]} 6. Ne5 {[%clk 0:03:06.2]} 6... Nbd7
{[%clk 0:03:06.4]} 7. Nc4 {[%clk 0:03:07.1]} 7... Qc7 {[%clk 0:03:06.8]} 8. Qf3
{[%clk 0:03:08.4]} 8... Nb6 {[%clk 0:03:07.6]} 9. Bf4 {[%clk 0:03:09.5]} 9...
Qd7 {[%clk 0:03:08.4]} 10. Ne5 {[%clk 0:03:10.8]} 10... Qd8 {[%clk 0:03:07.3]}
11. O-O-O {[%clk 0:03:11.5]} 11... e6 {[%clk 0:03:06.5]} 12. g4 {[%clk
0:03:11.3]} 12... Be7 {[%clk 0:03:02.6]} 13. h4 {[%clk 0:03:11.2]} 13... O-O
{[%clk 0:02:35.5]} 14. g5 {[%clk 0:03:11.5]} 14... Nfd5 {[%clk 0:02:36.3]} 15.
Bd3 {[%clk 0:03:11.4]} 15... Nxc3 {[%clk 0:02:27.8]} 16. bxc3 {[%clk 0:03:13.3]}
16... Nd5 {[%clk 0:02:27.6]} 17. Kd2 {[%clk 0:03:10.6]} 17... Qa5 {[%clk
0:02:20.1]} 18. Be4 {[%clk 0:03:08.1]} 18... Nxc3 {[%clk 0:02:14.8]} 19. Ke3
{[%clk 0:03:09.3]} 19... Nxe4 {[%clk 0:01:54.9]} 20. Qxe4 {[%clk 0:03:07.9]}
20... c5 {[%clk 0:01:44.7]} 21. Kf3 {[%clk 0:03:04]} 21... cxd4 {[%clk 0:01:29]}
22. Rxd4 {[%clk 0:03:04]} 22... Qc3+ {[%clk 0:01:03.9]} 23. Kg2 {[%clk
0:02:50.9]} 23... f6 {[%clk 0:00:50.4]} 24. gxf6 {[%clk 0:02:51]} 24... Bxf6
{[%clk 0:00:51.1]} 25. h5 {[%clk 0:02:50.8]} 25... h6 {[%clk 0:00:37.7]} 26. Rh3
{[%clk 0:02:48.2]} 26... Qa5 {[%clk 0:00:24.8]} 27. Rg3 {[%clk 0:02:48.4]} 27...
Rb8 {[%clk 0:00:16.8]} 28. Ng4 {[%clk 0:02:42.8]} 28... Bxd4 {[%clk 0:00:15.9]}
29. Qg6 {[%clk 0:02:29.5]} 29... Qd5+ {[%clk 0:00:12.8]} 30. Kh2 {[%clk
0:02:29.8]} 30... Kh8 {[%clk 0:00:13.2]} 31. Bxh6 {[%clk 0:02:30.3]} 31... gxh6
{[%clk 0:00:12.6]} 32. Qxh6+ {[%clk 0:02:30.5]} 32... Kg8 {[%clk 0:00:11.5]} 33.
Ne5# {[%clk 0:02:32.4]} 1-0

[Event "*** Titled Tuesday 3|2 Blitz"]
[Site "Chess.com"]
[Date "2015.12.01"]
[Round "7"]
[White "Gevorg_Harutjunyan"]
[Black "MisaPap"]
[Result "1-0"]
[WhiteElo "2522"]
[BlackElo "2379"]
[TimeControl "180+2"]
[EndTime "18:29:19 PST"]
[Termination "Gevorg_Harutjunyan won by resignation"]

1. e4 {[%clk 0:03:01]} 1... c5 {[%clk 0:02:59.7]} 2. Nc3 {[%clk 0:03:01.9]} 2...
Nc6 {[%clk 0:03:00.3]} 3. Bb5 {[%clk 0:03:00.6]} 3... Nd4 {[%clk 0:03:01.1]} 4.
Bc4 {[%clk 0:03:01.8]} 4... e6 {[%clk 0:03:02.3]} 5. Nge2 {[%clk 0:03:02.9]}
5... Nf6 {[%clk 0:03:02.7]} 6. O-O {[%clk 0:03:04]} 6... a6 {[%clk 0:03:03.3]}
7. a4 {[%clk 0:03:04.4]} 7... Nxe4 {[%clk 0:03:03.2]} 8. Nxe4 {[%clk 0:03:04.6]}
8... d5 {[%clk 0:03:04.1]} 9. Bd3 {[%clk 0:03:05.7]} 9... dxe4 {[%clk
0:03:03.1]} 10. Bxe4 {[%clk 0:03:06.7]} 10... Bd6 {[%clk 0:03:04.1]} 11. d3
{[%clk 0:03:00.6]} 11... f5 {[%clk 0:02:43.7]} 12. Nxd4 {[%clk 0:02:59.1]} 12...
cxd4 {[%clk 0:02:39.6]} 13. Bf3 {[%clk 0:02:57.6]} 13... O-O {[%clk 0:02:39.8]}
14. Re1 {[%clk 0:02:55.6]} 14... Qc7 {[%clk 0:02:38.5]} 15. g3 {[%clk 0:02:55]}
15... e5 {[%clk 0:02:39.5]} 16. Bd5+ {[%clk 0:02:52.2]} 16... Kh8 {[%clk
0:02:39.6]} 17. Bd2 {[%clk 0:02:44.3]} 17... Bd7 {[%clk 0:02:38.4]} 18. c4
{[%clk 0:02:41.4]} 18... a5 {[%clk 0:02:35]} 19. Qf3 {[%clk 0:02:35.8]} 19...
Rab8 {[%clk 0:02:26.2]} 20. Re2 {[%clk 0:02:27.6]} 20... b6 {[%clk 0:02:24.8]}
21. b3 {[%clk 0:02:24.8]} 21... Qd8 {[%clk 0:02:11.8]} 22. Rae1 {[%clk
0:02:18.5]} 22... Qf6 {[%clk 0:02:12.4]} 23. Qh5 {[%clk 0:02:11.3]} 23... f4
{[%clk 0:01:57.9]} 24. gxf4 {[%clk 0:02:00.3]} 24... exf4 {[%clk 0:01:58.3]} 25.
Re6 {[%clk 0:01:53.4]} 25... Bxe6 {[%clk 0:01:55.1]} 26. Rxe6 {[%clk 0:01:55.3]}
26... Qd8 {[%clk 0:01:37.3]} 27. Be4 {[%clk 0:01:51.3]} 27... g6 {[%clk
0:01:32.8]} 28. Bxg6 {[%clk 0:01:41.2]} 28... Rb7 {[%clk 0:01:31.9]} 29. Be4
{[%clk 0:01:34.1]} 29... Rg7+ {[%clk 0:01:31]} 30. Kf1 {[%clk 0:01:35.4]} 30...
Bb4 {[%clk 0:01:14]} 31. Bxb4 {[%clk 0:00:46.5]} 31... axb4 {[%clk 0:01:13.9]}
32. Ke2 {[%clk 0:00:42.9]} 32... Qd7 {[%clk 0:01:04.1]} 33. Qe5 {[%clk
0:00:40.5]} 33... f3+ {[%clk 0:00:58.1]} 34. Kd2 {[%clk 0:00:34.6]} 34... Qd8
{[%clk 0:00:47.9]} 35. Rh6 {[%clk 0:00:27]} 35... b5 {[%clk 0:00:22.2]} 36.
Rxh7+ {[%clk 0:00:26.8]} 1-0

[Event "*** Titled Tuesday 3|2 Blitz"]
[Site "Chess.com"]
[Date "2015.12.01"]
[Round "7"]
[White "gauranga"]
[Black "ethylalcohol"]
[Result "1-0"]
[WhiteElo "2050"]
[BlackElo "1921"]
[TimeControl "180+2"]
[EndTime "18:29:20 PST"]
[Termination "gauranga won by resignation"]

1. b3 {[%clk 0:03:01.9]} 1... e5 {[%clk 0:02:59.7]} 2. Bb2 {[%clk 0:02:57.6]}
2... Nc6 {[%clk 0:02:45.7]} 3. e3 {[%clk 0:02:58.9]} 3... d5 {[%clk 0:02:45.7]}
4. Bb5 {[%clk 0:02:59.8]} 4... Bd6 {[%clk 0:02:28.9]} 5. f4 {[%clk 0:03:00.4]}
5... Qe7 {[%clk 0:02:28.4]} 6. Nf3 {[%clk 0:03:01.1]} 6... f6 {[%clk 0:02:04.9]}
7. O-O {[%clk 0:03:00.3]} 7... Bg4 {[%clk 0:02:02.5]} 8. h3 {[%clk 0:02:26.2]}
8... Bxf3 {[%clk 0:01:55.2]} 9. Qxf3 {[%clk 0:02:26.6]} 9... e4 {[%clk
0:01:56.1]} 10. Qf2 {[%clk 0:01:51.5]} 10... Nh6 {[%clk 0:01:54.9]} 11. Nc3
{[%clk 0:01:50.8]} 11... Qf7 {[%clk 0:01:53]} 12. d3 {[%clk 0:01:40.5]} 12...
exd3 {[%clk 0:01:37.4]} 13. Bxd3 {[%clk 0:01:40.6]} 13... O-O-O {[%clk
0:01:28.2]} 14. a3 {[%clk 0:01:39.4]} 14... Bc5 {[%clk 0:01:08.5]} 15. b4 {[%clk
0:01:37.5]} 15... Bb6 {[%clk 0:01:06.5]} 16. Na4 {[%clk 0:01:38.3]} 16... Rhe8
{[%clk 0:00:59.9]} 17. Nxb6+ {[%clk 0:01:39.1]} 17... axb6 {[%clk 0:01:00.4]}
18. Rfe1 {[%clk 0:01:27.5]} 18... g6 {[%clk 0:01:00.3]} 19. Qh4 {[%clk
0:01:22.4]} 19... Nf5 {[%clk 0:00:57.3]} 20. Bxf5+ {[%clk 0:01:20.3]} 20... gxf5
{[%clk 0:00:58]} 21. Qxf6 {[%clk 0:01:12.5]} 21... Qd7 {[%clk 0:00:50.7]} 22.
Rad1 {[%clk 0:01:08.5]} 22... Re6 {[%clk 0:00:47.6]} 23. Qxf5 {[%clk 0:01:04.7]}
23... Rg8 {[%clk 0:00:47.4]} 24. Qxd5 {[%clk 0:00:55.4]} 24... Qe7 {[%clk
0:00:40.2]} 25. e4 {[%clk 0:00:41.8]} 25... Kb8 {[%clk 0:00:39.8]} 26. f5 {[%clk
0:00:39]} 26... Rh6 {[%clk 0:00:35.7]} 27. Qxg8+ {[%clk 0:00:35.4]} 27... Ka7
{[%clk 0:00:34.1]} 28. f6 {[%clk 0:00:30.3]} 28... Rxf6 {[%clk 0:00:26.7]} 29.
Bxf6 {[%clk 0:00:30.1]} 29... Qxf6 {[%clk 0:00:28.6]} 30. b5 {[%clk 0:00:18.3]}
30... Ne5 {[%clk 0:00:19.6]} 31. Rd8 {[%clk 0:00:18.9]} 31... Nf3+ {[%clk
0:00:16.1]} 32. gxf3 {[%clk 0:00:19]} 1-0

[Event "*** Titled Tuesday 3|2 Blitz"]
[Site "Chess.com"]
[Date "2015.12.01"]
[Round "7"]
[White "jlandaw"]
[Black "yopino"]
[Result "1-0"]
[WhiteElo "2362"]
[BlackElo "2217"]
[TimeControl "180+2"]
[EndTime "18:29:21 PST"]
[Termination "jlandaw won by resignation"]

1. e4 {[%clk 0:03:01.9]} 1... c5 {[%clk 0:03:00.2]} 2. Nc3 {[%clk 0:03:02.5]}
2... g6 {[%clk 0:03:01.1]} 3. g3 {[%clk 0:03:03.9]} 3... Bg7 {[%clk 0:03:01.2]}
4. Bg2 {[%clk 0:03:03.5]} 4... Nc6 {[%clk 0:03:02.7]} 5. d3 {[%clk 0:03:04.3]}
5... d6 {[%clk 0:03:03.3]} 6. f4 {[%clk 0:03:05.4]} 6... Rb8 {[%clk 0:03:00.2]}
7. a3 {[%clk 0:02:50.8]} 7... h5 {[%clk 0:02:40.8]} 8. h3 {[%clk 0:02:45.1]}
8... e6 {[%clk 0:02:34.5]} 9. Nf3 {[%clk 0:02:41.4]} 9... Nge7 {[%clk
0:02:33.5]} 10. O-O {[%clk 0:02:38.7]} 10... b5 {[%clk 0:02:33.9]} 11. Rb1
{[%clk 0:02:38.1]} 11... a5 {[%clk 0:02:32.8]} 12. a4 {[%clk 0:02:38.8]} 12...
b4 {[%clk 0:02:32.8]} 13. Nb5 {[%clk 0:02:38.8]} 13... Ba6 {[%clk 0:02:33.3]}
14. c4 {[%clk 0:02:38.7]} 14... bxc3 {[%clk 0:01:52.4]} 15. bxc3 {[%clk
0:02:38.5]} 15... Na7 {[%clk 0:01:41.5]} 16. c4 {[%clk 0:02:29.6]} 16... Nac6
{[%clk 0:01:42.3]} 17. e5 {[%clk 0:01:08.2]} 17... dxe5 {[%clk 0:01:23.7]} 18.
fxe5 {[%clk 0:01:08.7]} 18... Nxe5 {[%clk 0:01:24.2]} 19. Bf4 {[%clk 0:00:53.8]}
19... Bxb5 {[%clk 0:00:43.1]} 20. Nxe5 {[%clk 0:00:45]} 20... Ba6 {[%clk
0:00:34.5]} 21. Rxb8 {[%clk 0:00:39.9]} 21... Qxb8 {[%clk 0:00:36.4]} 22. Nxf7
{[%clk 0:00:36.7]} 22... e5 {[%clk 0:00:35.2]} 23. Nxh8 {[%clk 0:00:12]} 23...
exf4 {[%clk 0:00:36]} 24. Nxg6 {[%clk 0:00:13.3]} 24... Nxg6 {[%clk 0:00:31.2]}
25. Qxh5 {[%clk 0:00:13.7]} 25... Bd4+ {[%clk 0:00:10.1]} 26. Kh1 {[%clk
0:00:14.6]} 26... Qd6 {[%clk 0:00:06.5]} 27. Be4 {[%clk 0:00:11.3]} 27... Kd8
{[%clk 0:00:07.7]} 28. Qxg6 {[%clk 0:00:10.4]} 28... Bc8 {[%clk 0:00:07.3]} 29.
Qxd6+ {[%clk 0:00:10.6]} 1-0

[Event "*** Titled Tuesday 3|2 Blitz"]
[Site "Chess.com"]
[Date "2015.12.01"]
[Round "7"]
[White "HustleStandard"]
[Black "wonderfultime"]
[Result "0-1"]
[WhiteElo "2392"]
[BlackElo "2635"]
[TimeControl "180+2"]
[EndTime "18:29:55 PST"]
[Termination "wonderfultime won on time"]

1. d4 {[%clk 0:02:58.9]} 1... d5 {[%clk 0:03:00.7]} 2. Nf3 {[%clk 0:02:59.6]}
2... Nf6 {[%clk 0:03:01]} 3. g3 {[%clk 0:02:59.3]} 3... c6 {[%clk 0:03:01.9]} 4.
Bg2 {[%clk 0:03:00.2]} 4... Bf5 {[%clk 0:03:00.7]} 5. c4 {[%clk 0:02:57.3]} 5...
e6 {[%clk 0:02:52.2]} 6. Nc3 {[%clk 0:02:51.5]} 6... Nbd7 {[%clk 0:02:44.3]} 7.
Nh4 {[%clk 0:02:52.1]} 7... Bg6 {[%clk 0:02:40.2]} 8. O-O {[%clk 0:02:25.7]}
8... Be7 {[%clk 0:02:40.5]} 9. Nxg6 {[%clk 0:02:21]} 9... hxg6 {[%clk
0:02:42.4]} 10. e3 {[%clk 0:02:22.4]} 10... O-O {[%clk 0:02:43.4]} 11. b3 {[%clk
0:02:18.3]} 11... Re8 {[%clk 0:02:27.7]} 12. Qd3 {[%clk 0:02:12.3]} 12... Bf8
{[%clk 0:02:21.7]} 13. Bb2 {[%clk 0:02:10.2]} 13... Qa5 {[%clk 0:02:13.4]} 14.
a3 {[%clk 0:02:03.2]} 14... Rad8 {[%clk 0:02:14.3]} 15. Rac1 {[%clk 0:01:57.6]}
15... dxc4 {[%clk 0:02:10.9]} 16. Qxc4 {[%clk 0:01:31.8]} 16... Qh5 {[%clk
0:01:17.6]} 17. Ne2 {[%clk 0:01:29.8]} 17... e5 {[%clk 0:01:10]} 18. b4 {[%clk
0:01:27.5]} 18... Nb6 {[%clk 0:00:58.9]} 19. Qc2 {[%clk 0:01:26.5]} 19... e4
{[%clk 0:00:56.8]} 20. Nc3 {[%clk 0:00:59.6]} 20... Qf5 {[%clk 0:00:54.2]} 21.
Qb3 {[%clk 0:00:56.5]} 21... g5 {[%clk 0:00:35.4]} 22. b5 {[%clk 0:00:56.4]}
22... c5 {[%clk 0:00:24.7]} 23. dxc5 {[%clk 0:00:53.3]} 23... Bxc5 {[%clk
0:00:26.6]} 24. Rfd1 {[%clk 0:00:52.2]} 24... Bf8 {[%clk 0:00:20.5]} 25. a4
{[%clk 0:00:41.8]} 25... Nbd7 {[%clk 0:00:15.3]} 26. Qc2 {[%clk 0:00:36.3]}
26... Nc5 {[%clk 0:00:14.1]} 27. Rxd8 {[%clk 0:00:33.5]} 27... Rxd8 {[%clk
0:00:14.7]} 28. Rd1 {[%clk 0:00:33.7]} 28... Rxd1+ {[%clk 0:00:13.3]} 29. Qxd1
{[%clk 0:00:32.7]} 29... Nd3 {[%clk 0:00:14.3]} 30. Qe2 {[%clk 0:00:31]} 30...
Ne5 {[%clk 0:00:10.5]} 31. Qd1 {[%clk 0:00:27.1]} 31... Nf3+ {[%clk 0:00:07.6]}
32. Kh1 {[%clk 0:00:11.9]} 32... Ng4 {[%clk 0:00:08.5]} 33. Nxe4 {[%clk
0:00:03.8]} 33... Nfxh2 {[%clk 0:00:06.5]} 34. Qe2 {[%clk 0:00:02.3]} 34... Qh7
{[%clk 0:00:06]} 35. f3 {[%clk 0:00:02.5]} 35... Nxf3+ {[%clk 0:00:06.7]} 0-1